bitfinex/quotes_SOLUSD_20240705
["timestamp","ask_amount","ask_price","bid_price","bid_amount"]
[1720176417972,7.7363,129.26,129.25,0.8766903]
[1720176418478,7.9063,129.26,129.25,0.8766903]
[1720176418969,7.7381,129.23,129.2,6.1201]
[1720176419147,7.7377,129.24,129.2,6.1201]
[1720176419486,0.17,129.26,129.2,6.1201]
[1720176419655,7.7383,129.23,129.17,15.5928]
[1720176419867,7.7383,129.23,129.12,0.8766903]
[1720176419868,7.7412,129.18,129.13,22.3733]
[1720176420086,7.7406,129.19,129.13,22.3733]
[1720176420377,38.58,129.28,129.13,222.3733]
[1720176420554,39.5098,129.27,129.14,0.12182235]
[1720176420752,7.7387,129.22,129.14,0.12182235]
[1720176420949,7.7393,129.21,129.14,0.12182235]
[1720176421182,5.19669015,129.26,129.14,0.12182235]
[1720176421363,7.737,129.25,129.16,100.0]
[1720176421558,7.7365,129.26,129.19,21.1874]
[1720176421782,7.735,129.29,129.2,0.12176578]
[1720176422081,7.7355,129.28,129.21,21.1874]
[1720176422285,42.5237,129.31,129.22,0.12174693]
[1720176422488,19.3337,129.31,129.22,0.12174693]
[1720176422662,7.7355,129.28,129.22,0.12174693]
[1720176423048,6.90990435,129.33,129.22,0.12174693]
[1720176423049,7.7381,129.23,129.22,0.12174693]
[1720176423250,7.7376,129.24,129.22,0.12174693]
[1720176423694,7.7381,129.23,129.22,0.12174693]
[1720176424056,7.9081,129.23,129.22,0.12174693]
[1720176425191,31.0981,129.23,129.22,0.12174693]
[1720176425495,7.9081,129.23,129.22,0.12174693]
[1720176425825,27.9081,129.23,129.22,0.12174693]
[1720176426118,51.0981,129.23,129.22,0.12174693]
[1720176426486,60.72945458,129.23,129.22,0.12174693]
[1720176426695,42.5385,129.21,129.12,22.8325903]
[1720176426999,7.7416,129.18,129.12,22.8325903]
[1720176427309,0.17,129.17,129.12,22.8325903]
[1720176427628,63.55373347,129.24,129.12,22.8325903]
[1720176427791,5.62923347,129.24,129.14,116.5752]
[1720176427988,25.15613779,129.26,129.15,26.3887]
[1720176428189,19.3414,129.26,129.15,26.3887]
[1720176428518,7.7371,129.25,129.16,20.0]
[1720176428699,1.19678055,129.27,129.17,16.0826]
[1720176428889,39.77678055,129.29,129.17,16.0826]
[1720176429089,7.7363,129.26,129.17,16.0826]
[1720176429284,7.7373,129.25,129.17,16.0826]
[1720176429506,7.7382,129.23,129.17,16.0826]
[1720176429685,7.7381,129.23,129.17,16.0826]
[1720176430022,7.7387,129.22,129.17,16.0826]
[1720176430192,7.7404,129.2,129.15,6.3887]
[1720176430395,42.5373,129.22,129.14,16.2557]
[1720176430593,43.19,129.21,129.14,16.2557]
[1720176430898,7.7423,129.16,129.14,16.2557]
[1720176431109,0.17,129.15,129.14,16.2557]
[1720176431893,19.3504,129.2,129.14,16.2557]
[1720176432115,7.7417,129.17,129.14,16.2557]
[1720176432291,7.9127,129.16,129.14,16.2557]
[1720176432616,0.17,129.16,129.12,7.3954903]
[1720176432906,7.7431,129.15,129.12,7.3954903]
[1720176433123,0.17,129.16,129.12,7.3954903]
[1720176433298,7.7417,129.18,129.12,7.3954903]
[1720176433504,0.17,129.17,129.12,7.3954903]
[1720176434303,48.22223661,129.22,129.12,7.3954903]
[1720176434620,26.50093198,129.26,129.13,20.0]
[1720176434823,7.7397,129.21,129.13,20.0]
[1720176435125,7.7425,129.16,129.12,7.3954903]
[1720176435286,19.349,129.21,129.12,7.3954903]
[1720176435491,7.7416,129.18,129.12,7.3954903]
[1720176435909,19.3516,129.19,129.12,7.3954903]
[1720176436095,7.7419,129.17,129.12,7.3954903]
[1720176436414,19.3477,129.22,129.12,7.3954903]
[1720176436693,7.7406,129.19,129.12,7.3954903]
[1720176437217,7.7401,129.2,129.12,7.3954903]
[1720176437586,7.7388,129.22,129.12,7.3954903]
[1720176437798,7.7388,129.22,129.13,20.0]
[1720176438187,7.7393,129.21,129.13,20.0]
[1720176438392,7.7393,129.21,129.14,15.2049]
[1720176438620,1.19678055,129.25,129.15,6.1306]
[1720176438790,7.7373,129.25,129.17,15.2049]
[1720176438990,59.20928055,129.29,129.17,15.2049]
[1720176439212,26.24530682,129.29,129.17,15.2049]
[1720176439615,7.7367,129.26,129.17,15.2049]
[1720176439800,26.24530682,129.29,129.18,206.4388]
[1720176439801,7.7352,129.28,129.18,206.4388]
[1720176440007,7.7346,129.29,129.19,20.0]
[1720176440210,8.0757679,129.31,129.2,16.1075]
[1720176440501,7.7353,129.28,129.2,16.1075]
[1720176440906,7.7346,129.29,129.2,16.1075]
[1720176441104,7.7361,129.27,129.2,16.1075]
[1720176441619,28.60654845,129.31,129.2,16.1075]
[1720176441620,7.7364,129.26,129.2,16.1075]
[1720176441793,7.7374,129.25,129.2,16.1075]
[1720176442621,47.85254845,129.31,129.2,16.1075]
[1720176442822,7.7362,129.27,129.2,16.1075]
[1720176443029,7.7361,129.27,129.2,16.1075]
[1720176443728,7.7351,129.28,129.21,6.2255]
[1720176444408,7.7358,129.27,129.21,6.2255]
[1720176445103,7.7351,129.28,129.21,6.2255]
[1720176445299,8.0757679,129.31,129.22,100.17]
[1720176445499,7.7323,129.33,129.25,6.3864]
[1720176445723,75.89396711,129.36,129.25,6.3864]
[1720176445724,7.7327,129.32,129.25,6.3864]
[1720176446015,7.7334,129.31,129.25,6.3864]
[1720176446796,7.7328,129.32,129.25,6.3864]
[1720176447527,7.7317,129.34,129.25,106.3864]
[1720176447728,22.20375397,129.39,129.27,16.6477]
[1720176448030,7.7321,129.33,129.27,16.6477]
[1720176448235,1.19678055,129.38,129.27,16.6477]
[1720176448403,7.7311,129.35,129.27,16.6477]
[1720176448821,7.7316,129.34,129.27,16.6477]
[1720176449126,19.3246,129.37,129.27,16.6477]
[1720176449335,42.5146,129.37,129.27,16.6477]
[1720176449536,7.7331,129.32,129.27,16.6477]
[1720176449824,7.9023,129.33,129.27,16.6477]
[1720176450024,0.17,129.33,129.27,16.6477]
[1720176451533,19.3277,129.35,129.27,16.6477]
[1720176451711,7.7325,129.33,129.27,16.6477]
[1720176451912,7.7327,129.32,129.27,16.6477]
[1720176452314,19.3277,129.35,129.27,16.6477]
[1720176452522,81.8504,129.34,129.27,16.6477]
[1720176452721,7.7349,129.29,129.27,16.6477]
[1720176453032,19.3338,129.31,129.25,6.3864]
[1720176453237,7.7363,129.26,129.25,6.3864]
[1720176453529,7.7361,129.27,129.25,6.3864]
[1720176453743,0.17,129.28,129.23,15.8593]
[1720176454032,7.7371,129.25,129.21,6.0929]
[1720176454427,0.17,129.24,129.21,6.0929]
[1720176454632,7.9077,129.24,129.21,6.0929]
[1720176454835,7.7382,129.23,129.19,16.3033]
[1720176455536,7.9075,129.24,129.19,16.3033]
[1720176456440,7.7382,129.23,129.19,16.3033]
[1720176457327,7.7397,129.21,129.19,16.3033]
[1720176457537,7.9088,129.22,129.19,16.3033]
[1720176457930,64.4058,129.28,129.19,16.3033]
[1720176458235,7.7374,129.25,129.19,16.3033]
[1720176458422,7.7363,129.26,129.19,16.3033]
[1720176458626,0.17,129.25,129.19,16.3033]
[1720176458830,7.7375,129.24,129.19,16.3033]
[1720176459243,7.9082,129.23,129.19,16.3033]
[1720176459547,0.17,129.25,129.19,16.3033]
[1720176459548,7.7369,129.25,129.19,16.3033]
[1720176459726,0.17,129.24,129.19,16.3033]
[1720176460118,94.83525519,129.3,129.19,16.3033]
[1720176460321,19.3382,129.28,129.19,16.3033]
[1720176460543,7.7379,129.24,129.19,16.3033]
[1720176460928,7.7383,129.23,129.19,16.3033]
[1720176462344,0.17,129.22,129.19,16.3033]
[1720176462531,7.7389,129.22,129.18,6.2651]
[1720176462853,0.17,129.21,129.18,6.2651]
[1720176463031,7.7387,129.22,129.18,6.2651]
[1720176463865,0.17,129.23,129.16,15.5017]
[1720176463866,7.7395,129.21,129.16,15.5017]
[1720176464035,7.9103,129.2,129.16,15.5017]
[1720176464226,0.17,129.23,129.16,15.5017]
[1720176464427,7.74,129.2,129.16,15.5017]
[1720176464858,7.7394,129.21,129.16,15.5017]
[1720176465344,19.3443,129.24,129.16,15.5017]
[1720176465345,7.7407,129.19,129.16,15.5017]
[1720176465555,7.91,129.2,129.16,15.5017]
[1720176465768,0.17,129.2,129.16,15.5017]
[1720176466436,7.91,129.2,129.16,15.5017]
[1720176467347,7.7406,129.19,129.16,15.5017]
[1720176467567,0.17,129.2,129.16,15.5017]
[1720176467730,7.7412,129.18,129.16,15.5017]
[1720176468557,7.9101,129.2,129.16,15.5017]
[1720176468851,7.7409,129.19,129.16,15.5017]
[1720176469053,7.9101,129.2,129.16,15.5017]
[1720176469356,0.17,129.2,129.16,15.5017]
[1720176469559,7.7417,129.17,129.14,6.0893]
[1720176469862,7.7424,129.16,129.14,6.0893]
[1720176471164,7.7419,129.17,129.14,6.0893]
[1720176472460,0.17,129.16,129.14,6.0893]
[1720176472662,0.17,129.18,129.14,6.0893]
[1720176473137,7.7424,129.16,129.14,6.0893]
[1720176473337,19.3502,129.2,129.14,6.0893]
[1720176473338,7.7429,129.15,129.14,6.0893]
[1720176473533,7.9118,129.17,129.12,16.4428903]
[1720176474065,41.7488,129.23,129.12,16.4428903]
[1720176474240,19.346,129.23,129.12,16.4428903]
[1720176474550,7.7405,129.19,129.12,16.4428903]
[1720176475277,7.7395,129.21,129.12,116.4428903]
[1720176475564,7.7401,129.2,129.13,20.0]
[1720176476141,7.7393,129.21,129.13,20.0]
[1720176476667,0.17,129.2,129.12,16.4428903]
[1720176476866,7.7413,129.18,129.12,16.4428903]
[1720176477049,0.17,129.17,129.12,16.4428903]
[1720176477252,7.9117,129.17,129.12,16.4428903]
[1720176478441,7.7429,129.15,129.12,16.4428903]
[1720176478640,0.17,129.14,129.12,16.4428903]
[1720176478855,7.9136,129.14,129.12,16.4428903]
[1720176479251,0.17,129.14,129.12,16.4428903]
[1720176479457,7.9137,129.14,129.12,16.4428903]
[1720176479758,0.17,129.14,129.12,16.4428903]
[1720176480548,7.7417,129.17,129.12,16.4428903]
[1720176480874,19.3518,129.19,129.12,16.4428903]
[1720176480875,7.9128,129.16,129.12,16.4428903]
[1720176481076,7.7428,129.16,129.12,16.4428903]
[1720176481373,0.17,129.18,129.12,16.4428903]
[1720176481374,7.7419,129.17,129.12,16.4428903]
[1720176481579,0.17,129.16,129.12,16.4428903]
[1720176481867,7.9115,129.18,129.12,16.4428903]
[1720176482070,67.55805458,129.23,129.12,16.4428903]
[1720176482283,73.2769958,129.23,129.12,16.4428903]
[1720176482450,7.7399,129.2,129.12,16.4428903]
[1720176482655,7.7405,129.19,129.12,16.4428903]
[1720176482859,34.6969958,129.23,129.12,16.4428903]
[1720176482860,7.7403,129.2,129.12,16.4428903]
[1720176483477,7.7406,129.19,129.12,16.4428903]
[1720176483676,7.7412,129.18,129.12,16.4428903]
[1720176483866,7.7417,129.17,129.12,16.4428903]
[1720176484467,7.9123,129.16,129.12,16.4428903]
[1720176484854,0.17,129.16,129.12,16.4428903]
[1720176485282,7.9124,129.16,129.12,16.4428903]
[1720176485490,7.7431,129.15,129.12,16.4428903]
[1720176485685,0.17,129.14,129.12,16.4428903]
[1720176485984,7.7441,129.13,129.12,0.8766903]
[1720176486174,7.7471,129.08,129.07,23.0159]
[1720176486359,7.9171,129.08,129.01,23.0159]
[1720176486778,7.9178,129.07,129.01,23.0159]
[1720176487291,0.17,129.07,129.01,23.0159]
[1720176487464,7.7493,129.05,129.01,23.0159]
[1720176487667,7.9195,129.04,129.01,23.0159]
[1720176487859,7.919,129.05,129.01,23.0159]
[1720176488265,7.7495,129.04,129.01,23.0159]
[1720176488460,0.17,129.05,128.99,0.8766903]
[1720176488461,7.9205,129.03,128.99,0.8766903]
[1720176488664,7.7519,129.0,128.99,0.8766903]
[1720176488883,7.9219,129.0,128.99,0.8766903]
[1720176493070,0.17,129.0,128.92,15.6836]
[1720176493285,0.17,128.99,128.92,15.6836]
[1720176493897,5.82095498,129.05,128.93,100.0]
[1720176493898,7.7502,129.03,128.93,100.0]
[1720176494102,6.0017,129.07,128.95,100.0]
[1720176494103,7.7482,129.07,128.95,100.0]
[1720176494390,7.7483,129.06,128.96,135.734]
[1720176494594,7.7502,129.03,128.96,35.564]
[1720176494776,8.36669456,129.1,128.96,15.564]
[1720176494777,26.53203198,129.05,128.96,15.564]
[1720176494981,7.7524,129.0,128.96,15.564]
[1720176495292,7.751,129.02,128.96,15.564]
[1720176495598,7.7501,129.03,128.97,20.0]
[1720176495963,7.751,129.02,128.97,20.0]
[1720176496172,19.3742,129.04,128.96,15.564]
[1720176496476,7.15903198,129.05,128.96,15.564]
[1720176496776,7.7496,129.04,128.96,15.564]
[1720176496999,19.3699,129.07,128.96,15.564]
[1720176497198,7.7496,129.04,128.96,15.564]
[1720176497363,19.3699,129.07,128.96,15.564]
[1720176497562,7.7499,129.04,128.96,15.564]
[1720176497773,7.7499,129.04,128.97,20.0]
[1720176497975,19.3699,129.07,128.97,20.0]
[1720176498185,7.7508,129.02,128.97,20.0]
[1720176498383,7.75,129.04,128.97,20.0]
[1720176498601,44.471954,129.08,128.97,20.0]
[1720176498768,7.7491,129.05,128.97,20.0]
[1720176498975,7.7513,129.02,128.96,15.564]
[1720176499495,7.7508,129.02,128.96,15.564]
[1720176499705,7.7524,129.0,128.96,15.564]
[1720176500004,7.7531,128.98,128.96,15.564]
[1720176500169,0.17,129.01,128.96,15.564]
[1720176500373,7.7519,129.0,128.96,15.564]
[1720176500800,7.923,128.99,128.96,15.564]
[1720176501188,7.7531,128.98,128.96,15.564]
[1720176501786,7.9227,128.99,128.96,15.564]
[1720176502908,7.7532,128.98,128.96,15.564]
[1720176503083,7.7532,128.98,128.94,6.3811]
[1720176503589,7.9227,128.99,128.94,6.3811]
[1720176504103,7.7532,128.98,128.94,6.3811]
[1720176505006,0.17,128.99,128.92,15.6338]
[1720176505303,19.3834,128.98,128.92,15.6338]
[1720176508606,7.7571,128.92,128.89,15.781783]
[1720176508988,7.7579,128.9,128.89,0.205283]
[1720176509193,7.7575,128.91,128.89,0.205283]
[1720176509690,7.7579,128.9,128.89,0.205283]
[1720176509913,7.9279,128.9,128.89,0.205283]
[1720176511388,7.9279,128.9,128.86,0.8766903]
[1720176511389,7.7597,128.87,128.86,0.8766903]
[1720176511789,7.9297,128.87,128.86,0.8766903]
[1720176512688,7.7581,128.9,128.86,0.8766903]
[1720176513290,7.7597,128.87,128.86,0.8766903]
[1720176514394,7.9297,128.87,128.86,0.8766903]
[1720176516216,7.7633,128.81,128.8,0.04600487]
[1720176516592,7.7629,128.82,128.8,0.04600487]
[1720176516790,7.7622,128.83,128.8,0.04600487]
[1720176516991,7.9317,128.84,128.8,0.04600487]
[1720176517197,0.17,128.86,128.8,0.04600487]
[1720176517198,19.5715,128.86,128.8,0.04600487]
[1720176517991,0.17,128.86,128.8,0.04600487]
[1720176518191,7.7621,128.84,128.8,0.04600487]
[1720176518404,7.7622,128.83,128.8,0.04600487]
[1720176518726,19.4027,128.85,128.8,0.04600487]
[1720176518893,7.7633,128.81,128.8,0.04600487]
[1720176519213,7.9333,128.81,128.8,0.04600487]
[1720176519604,7.7656,128.78,128.75,6.1673]
[1720176519811,7.7653,128.78,128.75,6.1673]
[1720176520019,7.7658,128.77,128.75,6.1673]
[1720176520311,7.7654,128.78,128.75,6.1673]
[1720176520522,7.7659,128.77,128.75,6.1673]
[1720176520695,7.9349,128.79,128.75,6.1673]
[1720176520893,8.08572474,128.82,128.75,6.1673]
[1720176521119,7.7617,128.84,128.76,20.0]
[1720176521712,27.48424913,128.87,128.76,20.0]
[1720176522306,7.7617,128.84,128.76,20.0]
[1720176522522,8.08414913,128.87,128.78,100.0]
[1720176522719,25.27581031,128.93,128.79,120.0]
[1720176522899,7.759,128.89,128.79,120.0]
[1720176523230,8.09115671,128.92,128.81,16.238]
[1720176523523,8.09115671,128.92,128.85,200.0]
[1720176523820,7.7555,128.95,128.87,16.238]
[1720176524209,7.7555,128.95,128.87,216.238]
[1720176525102,7.7555,128.95,128.88,26.477]
[1720176525293,8.08505257,128.98,128.88,26.477]
[1720176525294,7.7556,128.94,128.88,26.477]
[1720176525697,7.7544,128.96,128.88,26.477]
[1720176526513,7.7551,128.95,128.88,26.477]
[1720176527016,7.7555,128.94,128.88,6.477]
[1720176527232,27.46835257,128.98,128.88,6.477]
[1720176527601,7.7566,128.93,128.88,6.477]
[1720176528235,0.17,128.94,128.88,6.477]
[1720176528544,0.17,128.92,128.88,6.477]
[1720176528702,19.5601,128.94,128.88,6.477]
[1720176529020,0.17,128.94,128.88,6.477]
[1720176529534,7.7569,128.92,128.88,6.477]
[1720176529712,7.7574,128.91,128.88,6.477]
[1720176531035,0.17,128.92,128.88,6.477]
[1720176531332,38.29808553,128.98,128.88,6.477]
[1720176531504,7.756,128.94,128.88,6.477]
[1720176531942,7.7561,128.93,128.88,6.477]
[1720176532239,7.758,128.9,128.87,16.238]
[1720176532413,7.7587,128.89,128.87,16.238]
[1720176532616,7.7594,128.88,128.84,22.4095]
[1720176532824,0.17,128.89,128.84,22.4095]
[1720176533006,7.7599,128.87,128.84,22.4095]
[1720176533206,7.7619,128.84,128.8,22.0554]
[1720176533835,7.7627,128.82,128.8,22.0554]
[1720176534422,7.7627,128.82,128.74,22.5305]
[1720176534736,7.7633,128.81,128.74,22.5305]
[1720176535419,7.763,128.82,128.74,22.5305]
[1720176535618,0.17,128.83,128.74,22.5305]
[1720176536012,7.7628,128.82,128.74,22.5305]
[1720176536514,7.7638,128.81,128.74,22.5305]
[1720176536716,0.17,128.83,128.74,22.5305]
[1720176537432,7.7635,128.81,128.74,22.5305]
[1720176538230,0.17,128.83,128.74,22.5305]
[1720176538434,0.17,128.8,128.74,22.5305]
[1720176538611,20.17,128.83,128.74,22.5305]
[1720176538811,19.4072,128.82,128.74,22.5305]
[1720176539011,0.17,128.81,128.74,22.5305]
[1720176539222,19.4104,128.8,128.74,22.5305]
[1720176539418,0.17,128.79,128.74,22.5305]
[1720176539632,7.7658,128.77,128.74,22.5305]
[1720176539942,7.7664,128.76,128.74,22.5305]
[1720176540327,7.7664,128.76,128.73,0.8766903]
[1720176540641,20.0,128.83,128.73,0.8766903]
[1720176540812,0.17,128.82,128.73,0.8766903]
[1720176541011,7.7668,128.76,128.73,0.8766903]
[1720176541943,7.9359,128.77,128.73,0.8766903]
[1720176542150,0.17,128.77,128.73,0.8766903]
[1720176542743,7.9359,128.77,128.73,0.8766903]
[1720176542946,7.7654,128.78,128.73,0.8766903]
[1720176543310,7.7657,128.77,128.73,0.8766903]
[1720176543516,7.7653,128.78,128.73,0.8766903]
[1720176543850,7.7657,128.77,128.73,0.8766903]
[1720176544018,7.7654,128.78,128.73,0.8766903]
[1720176544215,7.7658,128.77,128.73,0.8766903]
[1720176544929,7.7653,128.78,128.73,0.8766903]
[1720176545246,7.7659,128.77,128.73,0.8766903]
[1720176545470,7.9359,128.77,128.73,0.8766903]
[1720176545632,7.7659,128.77,128.73,0.8766903]
[1720176545958,0.17,128.79,128.73,0.8766903]
[1720176546158,7.7647,128.79,128.73,0.8766903]
[1720176546468,7.9353,128.78,128.73,0.8766903]
[1720176546654,7.7658,128.77,128.73,0.8766903]
[1720176546836,0.17,128.76,128.73,0.8766903]
[1720176547155,7.9366,128.76,128.73,0.8766903]
[1720176547731,0.17,128.76,128.73,0.8766903]
[1720176548771,7.9365,128.76,128.73,0.8766903]
[1720176549129,0.17,128.76,128.73,0.8766903]
[1720176549464,0.17,128.77,128.73,0.8766903]
[1720176549638,7.7662,128.77,128.73,0.8766903]
[1720176549838,0.17,128.76,128.73,0.8766903]
[1720176550146,7.9365,128.76,128.73,0.8766903]
[1720176550332,0.17,128.76,128.73,0.8766903]
[1720176550753,7.767,128.75,128.73,0.8766903]
[1720176551432,7.9375,128.74,128.73,0.8766903]
[1720176552467,0.17,128.74,128.73,0.8766903]
[1720176552758,7.9375,128.74,128.73,0.8766903]
[1720176555055,16.03637936,128.74,128.73,0.8766903]
[1720176555252,23.19,128.73,128.63,22.107483]
[1720176555458,19.427,128.69,128.63,22.107483]
[1720176555634,0.17,128.68,128.63,22.107483]
[1720176555952,7.7728,128.66,128.63,22.107483]
[1720176556153,25.5884,128.67,128.63,0.205283]
[1720176556359,7.7744,128.63,128.6,0.0819733]
[1720176556541,0.17,128.66,128.6,0.0819733]
[1720176556859,7.7734,128.65,128.6,0.0819733]
[1720176557065,7.9426,128.66,128.6,0.0819733]
[1720176557238,7.7731,128.65,128.6,0.0819733]
[1720176558537,0.17,128.64,128.6,0.0819733]
[1720176558874,7.9438,128.64,128.6,0.0819733]
[1720176559354,0.17,128.64,128.6,0.0819733]
[1720176559758,11.99328015,128.7,128.6,0.0819733]
[1720176559973,7.7748,128.62,128.6,0.0819733]
[1720176560161,19.4311,128.66,128.6,0.0819733]
[1720176560358,7.775,128.62,128.6,0.0819733]
[1720176560652,7.7744,128.63,128.6,0.0819733]
[1720176561454,7.9438,128.64,128.6,0.0819733]
[1720176562479,7.7742,128.63,128.6,0.0819733]
[1720176563778,7.9438,128.64,128.6,0.0819733]
[1720176564076,7.9437,128.64,128.6,0.0819733]
[1720176564857,39.23,128.67,128.6,0.0819733]
[1720176564858,7.7725,128.66,128.6,0.0819733]
[1720176565181,5.76618816,128.71,128.6,0.0819733]
[1720176565361,47.33909771,128.72,128.6,0.0819733]
[1720176565559,7.7714,128.68,128.6,0.0819733]
[1720176565755,15.86195168,128.7,128.6,0.2519733]
[1720176565964,7.7713,128.68,128.61,16.1195]
[1720176566281,7.7705,128.7,128.61,16.1195]
[1720176566480,7.7708,128.69,128.61,16.1195]
[1720176566669,20.12670036,128.72,128.61,16.1195]
[1720176566870,7.77,128.7,128.61,16.1195]
[1720176567052,7.7706,128.69,128.61,16.1195]
[1720176567759,20.12670036,128.72,128.63,6.5613]
[1720176567955,5.96772231,128.74,128.64,100.0]
[1720176568156,19.4201,128.74,128.63,6.5613]
[1720176568583,7.7696,128.71,128.63,6.5613]
[1720176568765,19.4201,128.74,128.63,106.5613]
[1720176569087,19.4201,128.74,128.63,206.5613]
[1720176569263,7.7689,128.72,128.63,206.5613]
[1720176569594,8.10437935,128.75,128.66,22.5977]
[1720176569764,45.2452,128.83,128.7,100.0]
[1720176570085,8.09793467,128.81,128.71,106.4433]
[1720176570268,7.7646,128.79,128.71,106.4433]
[1720176570455,7.7646,128.79,128.72,100.0]
[1720176570655,7.7646,128.79,128.73,16.4683]
[1720176571059,7.7652,128.78,128.73,16.4683]
[1720176571375,8.09793467,128.81,128.73,116.4683]
[1720176571582,7.7622,128.83,128.73,116.4683]
[1720176571782,38.69756317,128.86,128.74,0.17]
[1720176571963,38.69756317,128.86,128.73,116.4683]
[1720176571964,7.7647,128.79,128.73,16.4683]
[1720176572485,21.70523127,128.84,128.73,16.4683]
[1720176572988,7.7652,128.78,128.73,16.4683]
[1720176573378,19.4079,128.82,128.73,16.4683]
[1720176573787,7.7665,128.76,128.71,6.4433]
[1720176574504,7.7658,128.77,128.71,6.4433]
[1720176574682,0.17,128.76,128.71,6.4433]
[1720176574991,7.7658,128.77,128.71,6.4433]
[1720176575300,0.17,128.78,128.71,6.4433]
[1720176576000,7.7641,128.8,128.71,6.4433]
[1720176576370,7.15903198,128.81,128.71,6.4433]
[1720176576371,7.7645,128.79,128.71,6.4433]
[1720176576678,7.7653,128.78,128.71,6.4433]
[1720176576875,7.15903198,128.81,128.69,15.2715]
[1720176576876,42.601,128.8,128.69,15.2715]
[1720176577095,7.768,128.74,128.69,15.2715]
[1720176577396,7.769,128.72,128.68,6.5949]
[1720176577766,0.17,128.73,128.68,6.5949]
[1720176577992,7.7692,128.72,128.68,6.5949]
[1720176579001,7.7694,128.71,128.68,6.5949]
[1720176579170,7.7694,128.71,128.65,16.3191]
[1720176579369,7.7694,128.71,128.65,22.8271]
[1720176579992,7.77,128.7,128.65,22.8271]
[1720176580185,7.7706,128.69,128.65,22.8271]
[1720176580504,7.7719,128.67,128.62,6.4234]
[1720176581211,7.9414,128.68,128.62,6.4234]
[1720176581377,7.7718,128.67,128.62,6.4234]
[1720176581781,19.4238,128.71,128.62,6.4234]
[1720176581782,7.7704,128.7,128.62,6.4234]
[1720176582506,7.7708,128.69,128.62,6.4234]
[1720176582809,7.7713,128.68,128.62,6.4234]
[1720176582983,7.7731,128.65,128.62,6.4234]
[1720176583398,0.17,128.64,128.62,6.4234]
[1720176584110,7.7726,128.66,128.62,6.4234]
[1720176584399,0.17,128.65,128.62,6.4234]
[1720176586203,7.772,128.67,128.62,6.4234]
[1720176586379,7.7707,128.69,128.62,6.4234]
[1720176586580,7.7702,128.7,128.62,6.4234]
[1720176586881,7.7694,128.71,128.62,6.4234]
[1720176587297,7.77,128.7,128.62,6.4234]
[1720176588800,8.09906159,128.72,128.62,106.4234]
[1720176588978,7.7686,128.73,128.63,20.0]
[1720176589180,8.09518315,128.74,128.65,100.0]
[1720176589379,8.09518315,128.74,128.68,15.1036]
[1720176589987,10.06653127,128.76,128.68,15.1036]
[1720176590314,8.11040316,128.76,128.68,15.1036]
[1720176590495,5.82877269,128.8,128.69,20.0]
[1720176590695,8.1091619,128.79,128.68,15.1036]
[1720176590903,7.7664,128.76,128.68,15.1036]
[1720176591105,7.7664,128.76,128.69,20.0]
[1720176591409,7.767,128.75,128.68,15.1036]
[1720176591805,7.7664,128.76,128.68,15.1036]
[1720176592100,27.5209619,128.79,128.68,15.1036]
[1720176592609,7.7669,128.76,128.68,15.1036]
[1720176592910,27.5209619,128.79,128.68,15.1036]
[1720176593115,7.7656,128.78,128.68,15.1036]
[1720176593429,15.8737619,128.79,128.68,15.1036]
[1720176593630,7.7651,128.78,128.69,20.0]
[1720176593786,15.8738619,128.79,128.69,20.0]
[1720176594207,15.8738619,128.79,128.69,120.0]
[1720176594511,7.7651,128.78,128.69,20.0]
[1720176594711,8.1091619,128.79,128.69,120.0]
[1720176594914,8.1091619,128.79,128.7,106.3636]